bitfinex-derivatives/quotes_BNBF0:USTF0_20250126
["timestamp","ask_amount","ask_price","bid_price","bid_amount"]
[1737908564497,1.125,684.46,683.56,1.09565285]
[1737908568399,1.125,684.46,683.48,1.09565285]
[1737908568601,1.125,684.46,683.49,0.26865519]
[1737908570804,1.125,684.46,683.48,1.09565285]
[1737908570999,1.125,684.46,683.49,0.26866327]
[1737908571503,1.125,684.46,683.5,1.09565285]
[1737908571705,1.125,684.46,683.51,0.26866327]
[1737908573705,1.125,684.46,683.52,0.26866327]
[1737908573906,1.125,684.46,683.45,1.09565285]
[1737908574105,1.125,684.46,683.46,0.26868743]
[1737908575915,1.125,684.46,683.47,0.26868743]
[1737908576114,1.125,684.46,683.41,0.26868743]
[1737908576418,1.125,684.46,683.42,0.26868743]
[1737908576617,1.125,684.46,683.41,0.26868743]
[1737908576818,1.125,684.46,683.42,0.26868743]
[1737908577018,1.125,684.46,683.4,1.09565285]
[1737908577019,1.125,684.46,683.43,0.26868743]
[1737908577218,1.125,684.46,683.41,0.26868743]
[1737908579119,1.125,684.46,683.4,1.09565285]
[1737908579420,1.125,684.46,683.41,1.36433136]
[1737908579617,1.125,684.46,683.42,0.26867851]
[1737908580822,1.125,684.46,683.43,0.26868149]
[1737908582325,1.125,684.46,683.44,0.26868149]
[1737908582520,1.125,684.46,683.45,0.26868149]
[1737908582722,1.125,684.46,683.46,0.26868149]
[1737908582918,1.125,684.46,683.42,0.26868149]
[1737908583121,1.125,684.46,683.43,0.26868149]
[1737908583321,1.125,684.46,683.42,0.26868149]
[1737908585025,1.125,684.46,683.43,0.26868763]
[1737908585224,1.125,684.46,683.42,0.26868763]
[1737908585428,1.125,684.46,683.43,0.26868763]
[1737908585627,1.125,684.46,683.41,1.09565285]
[1737908585628,1.125,684.46,683.42,0.26868763]
[1737908585823,1.125,684.46,683.43,0.26868763]
[1737908586028,1.125,684.46,683.47,1.09565285]
[1737908586221,1.125,684.46,683.48,0.26868763]
[1737908586623,1.125,684.46,683.47,1.09565285]
[1737908586826,1.125,684.46,683.48,0.26868883]
[1737908590231,1.125,684.46,683.48,1.36434168]
[1737908590427,1.125,684.46,683.49,0.26868883]
[1737908595126,1.125,684.46,683.48,0.26868883]
[1737908595328,1.125,684.46,683.49,0.26868883]
[1737908595634,1.125,684.46,683.5,0.2687055]
[1737908595833,1.125,684.46,683.48,0.2687055]
[1737908597329,1.125,684.46,683.47,1.09565285]
[1737908597533,1.125,684.46,683.48,0.26870434]
[1737908598336,1.125,684.46,683.47,1.09565285]
[1737908598538,1.125,684.46,683.46,1.09565285]
[1737908601732,1.125,684.46,683.47,0.26870388]
[1737908601940,1.125,684.46,683.46,1.09565285]
[1737908602341,1.125,684.46,683.44,1.09565285]
[1737908602539,1.125,684.46,683.45,0.26870568]
[1737908603240,1.125,684.46,683.44,1.09565285]
[1737908605941,1.125,684.46,683.23,1.09565285]
[1737908608742,1.125,684.46,683.2,1.09565285]
[1737908609545,1.125,684.46,683.21,0.26875375]
[1737908610149,1.125,684.46,683.22,1.52645527]
[1737908611249,1.125,684.46,683.23,0.26874954]
[1737908612653,1.125,684.46,683.22,1.52645527]
[1737908612854,1.125,684.46,683.23,0.26874742]
[1737908615955,1.125,684.46,683.22,2.62210812]
[1737908616254,1.125,684.46,683.23,0.26874518]
[1737908618551,1.125,684.46,683.3,1.09565285]
[1737908618752,1.125,684.46,683.31,0.26874565]
[1737908619256,1.125,684.46,683.3,1.09565285]
[1737908619557,1.125,684.46,683.31,0.268746]
[1737908625057,1.125,684.46,683.32,0.268746]
[1737908625259,1.125,684.46,683.23,0.268746]
[1737908626954,1.125,684.46,683.24,1.09565285]
[1737908627162,1.125,684.46,683.25,0.268746]
[1737908631566,1.125,684.46,683.26,0.268746]
[1737908631756,1.125,684.46,683.23,0.268746]
[1737908631960,1.125,684.46,683.24,0.268746]
[1737908632161,1.125,684.46,683.25,0.268746]
[1737908632357,1.125,684.46,683.23,0.268746]
[1737908634867,1.125,684.46,683.24,0.26877873]
[1737908635067,1.125,684.46,683.25,0.26877873]
[1737908635370,1.125,684.46,683.22,1.09565285]
[1737908635371,1.125,684.46,683.26,0.26877873]
[1737908635564,1.125,684.46,683.27,0.26877873]
[1737908635767,1.125,684.46,683.28,0.26877873]
[1737908636067,1.125,684.46,683.29,0.26877873]
[1737908636368,1.125,684.46,683.3,0.26877873]
[1737908636568,1.125,684.46,683.31,0.26877831]
[1737908636766,1.125,684.46,683.32,0.26877841]
[1737908636969,1.125,684.46,683.23,0.26877841]
[1737908637269,1.125,684.46,683.24,0.26877841]
[1737908637469,1.125,684.46,683.25,0.26877841]
[1737908637775,1.125,684.46,683.26,0.26877841]
[1737908638069,1.125,684.46,683.29,1.09565285]
[1737908641769,1.125,684.46,683.24,1.09565285]
[1737908641969,1.125,684.46,683.25,0.26877592]
[1737908644175,1.125,684.46,683.26,0.2687729]
[1737908644372,1.125,684.46,683.27,0.2687729]
[1737908644573,1.125,684.46,683.28,0.2687729]
[1737908644768,1.125,684.46,683.25,0.2687729]
[1737908644969,1.125,684.46,683.24,1.09565285]
[1737908645167,1.125,684.46,683.25,0.26877398]
[1737908646973,1.125,684.46,683.26,1.09565285]
[1737908648177,1.125,684.46,683.27,0.26877398]
[1737908650076,1.125,684.46,683.33,1.09565285]
[1737908650277,1.125,684.46,683.34,0.26877398]
[1737908652776,1.125,684.46,683.34,1.09565285]
[1737908656378,1.125,684.46,683.35,0.26876483]
[1737908657681,1.125,684.46,683.34,1.09565285]
[1737908659480,1.125,684.46,683.38,1.09565285]
[1737908662784,1.125,684.46,683.3,1.09565285]
[1737908667589,1.125,684.46,683.29,1.09565285]
[1737908667785,1.125,684.46,683.29,1.38835433]
[1737908668380,1.125,684.46,683.3,0.26872166]
[1737908669885,1.125,684.46,683.34,1.09565285]
[1737908670087,1.125,684.46,683.35,0.26872166]
[1737908672593,1.125,684.46,683.37,1.09565285]
[1737908672785,1.125,684.46,683.38,0.26872166]
[1737908674990,1.125,684.46,683.39,0.26872182]
[1737908675295,1.125,684.46,683.4,0.26872182]
[1737908675495,1.125,684.46,683.35,1.09565285]
[1737908675993,1.125,684.46,683.36,0.2687255]
[1737908676793,1.125,684.46,683.37,0.26872272]
[1737908676994,1.125,684.46,683.38,0.26872272]
[1737908677193,1.125,684.46,683.35,1.09565285]
[1737908677194,1.125,684.46,683.36,0.26872272]
[1737908677394,1.125,684.46,683.37,0.26872272]
[1737908677694,1.125,684.46,683.38,0.26872272]
[1737908677996,1.125,684.46,683.39,0.26872272]
[1737908678194,1.125,684.46,683.4,0.26872272]
[1737908678387,1.125,684.46,683.36,0.26872272]
[1737908678588,1.125,684.46,683.37,0.26872209]
[1737908678893,1.125,684.46,683.36,0.26872209]
[1737908679089,1.125,684.46,683.37,0.26872209]
[1737908679289,1.125,684.46,683.36,0.26872209]
[1737908680991,1.125,684.46,683.38,1.09565285]
[1737908681799,1.125,684.46,683.39,0.26872209]
[1737908685201,1.125,684.46,683.4,1.09565285]
[1737908688301,1.125,684.46,683.36,1.09565285]
[1737908688503,1.125,684.46,683.37,0.26871913]
[1737908691002,1.125,684.46,683.36,1.09565285]
[1737908691199,1.125,684.46,683.37,0.26871783]
[1737908691798,1.125,684.46,683.41,1.09565285]
[1737908693304,1.125,684.46,683.42,0.26871884]
[1737908694902,1.125,684.46,683.41,1.09565285]
[1737908695101,1.125,684.46,683.52,1.09565285]
[1737908698306,1.125,684.46,683.37,1.09565285]
[1737908701404,1.125,684.46,683.36,1.09565285]
[1737908704611,1.125,684.46,683.37,0.2687096]
[1737908705812,1.125,684.46,683.39,1.09565285]
[1737908708615,1.125,684.46,683.4,0.26870946]
[1737908709710,1.125,684.46,683.44,1.09565285]
[1737908710017,1.125,684.46,683.45,0.26870957]
[1737908711409,1.125,684.46,683.44,1.09565285]
[1737908711609,1.125,684.46,683.45,0.26869369]
[1737908711814,1.125,684.46,683.46,0.26867553]
[1737908712114,1.125,684.46,683.29,0.29270148]
[1737908712115,1.125,684.46,683.51,1.09565285]
[1737908712315,1.125,684.46,683.52,0.26867553]
[1737908713415,1.125,684.46,683.51,1.09565285]
[1737908713617,1.125,684.46,683.52,0.26867103]
[1737908715319,1.125,684.46,683.51,1.09565285]
[1737908715819,1.125,684.46,683.53,1.09565285]
[1737908716417,1.125,684.46,683.54,0.26867755]
[1737908717923,1.125,684.46,683.52,0.26867755]
[1737908718424,1.125,684.46,683.51,1.09565285]
[1737908718622,1.125,684.46,683.52,0.26866552]
[1737908718923,1.125,684.46,683.51,1.09565285]
[1737908719123,1.125,684.46,683.52,0.26866498]
[1737908719518,1.125,684.46,683.51,1.09565285]
[1737908719823,1.125,684.46,683.52,0.2686675]
[1737908720024,1.125,684.46,683.51,1.09565285]
[1737908721220,1.125,684.46,683.47,1.09565285]
[1737908721422,1.125,684.46,683.48,0.26866758]
[1737908722321,1.125,684.46,683.49,0.26866733]
[1737908722522,1.125,684.46,683.48,0.26866733]
[1737908722724,1.125,684.46,683.49,0.26866733]
[1737908722922,1.125,684.46,683.48,0.26866733]
[1737908723126,1.125,684.46,683.47,1.09565285]
[1737908723328,1.125,684.46,683.48,0.26866786]
[1737908724631,1.125,684.46,683.49,1.09565285]
[1737908724928,1.125,684.46,683.5,0.26866786]
[1737908725925,1.125,684.46,683.51,0.268657]
[1737908726124,1.125,684.46,683.51,0.29260727]
[1737908726330,1.125,684.46,683.52,0.268657]
[1737908727934,1.125,684.46,683.53,0.268657]
[1737908728233,1.125,684.46,683.54,0.26861341]
[1737908728433,1.125,684.46,683.46,0.26861341]
[1737908728634,1.125,684.46,683.47,0.26861341]
[1737908728835,1.125,684.46,683.46,0.26861341]
[1737908729037,1.125,684.46,683.45,1.09565285]
[1737908729235,1.125,684.46,683.47,0.26861052]
[1737908729431,1.125,684.46,683.46,0.26861052]
[1737908729636,1.125,684.46,683.47,0.26861052]
[1737908729939,1.125,684.46,683.48,0.26861052]
[1737908730138,1.125,684.46,683.46,0.26861052]
[1737908730439,1.125,684.46,683.47,0.26861052]
[1737908730639,1.125,684.46,683.46,0.26861052]
[1737908730835,1.125,684.46,683.52,1.09565285]
[1737908731040,1.125,684.46,683.53,0.26861052]
[1737908731940,1.125,684.46,683.54,0.2686171]
[1737908732134,1.125,684.46,683.55,0.2686171]
[1737908732338,1.125,684.46,683.56,0.2686171]
[1737908732647,1.125,684.46,683.57,0.2686171]
[1737908732835,1.125,684.46,683.53,0.2686171]
[1737908733040,1.125,684.46,683.54,0.2686171]
[1737908733239,1.125,684.46,683.55,0.2686171]
[1737908733437,1.125,684.46,683.53,0.2686171]
[1737908734442,1.125,684.46,683.54,0.2686171]
[1737908734743,1.125,684.46,683.55,0.2686171]
[1737908735041,1.125,684.46,683.56,0.2686171]
[1737908735243,1.125,684.46,683.57,0.2686171]
[1737908735442,1.125,684.46,683.58,0.2686171]
[1737908735643,1.125,684.46,683.59,0.2686171]
[1737908735837,1.125,684.46,683.49,0.2686171]
[1737908736037,1.125,684.46,683.5,0.2686171]
[1737908736238,1.125,684.46,683.49,0.2686171]
[1737908736435,1.125,684.46,683.5,0.2686171]
[1737908736640,1.125,684.46,683.51,0.2686171]
[1737908736835,1.125,684.46,683.49,0.2686171]
[1737908737041,1.125,684.46,683.5,0.2686171]
[1737908737340,1.125,684.46,683.51,0.2686171]
[1737908737543,1.125,684.46,683.52,0.2686162]
[1737908737840,1.125,684.46,683.53,0.2686162]
[1737908738042,1.125,684.46,683.54,0.2686162]
[1737908738236,1.125,684.46,683.55,0.2686162]
[1737908738442,1.125,684.46,683.56,0.2686162]
[1737908738644,1.125,684.46,683.45,0.2686162]
[1737908738939,1.125,684.46,683.46,0.2686162]
[1737908739143,1.125,684.46,683.45,0.2686162]
[1737908739343,1.125,684.46,683.46,0.2686162]
[1737908739643,1.125,684.46,683.44,1.09565285]
[1737908739644,1.125,684.46,683.45,0.2686162]
[1737908739943,1.125,684.46,683.46,0.2686162]
[1737908740137,1.125,684.46,683.45,0.2686162]
[1737908740341,1.125,684.46,683.47,0.2686162]
[1737908740541,1.125,684.46,683.52,1.09565285]
[1737908741044,1.125,684.46,683.53,0.2686162]
[1737908743343,1.125,684.46,683.54,0.26860985]
[1737908743641,1.125,684.46,683.55,0.26860985]
[1737908743845,1.125,684.46,683.53,0.26860985]
[1737908744046,1.125,684.46,683.54,0.26860985]
[1737908744248,1.125,684.46,683.55,0.26860985]
[1737908744547,1.125,684.46,683.56,0.26860985]
[1737908744748,1.125,684.46,683.53,0.26860985]
[1737908744944,1.125,684.46,683.54,0.26860985]
[1737908745142,1.125,684.46,683.53,0.26860985]
[1737908745447,1.125,684.46,683.52,1.09565285]
[1737908745448,1.125,684.46,683.54,0.26860985]
[1737908745649,1.125,684.46,683.53,0.26860985]
[1737908745844,1.125,684.46,683.54,0.26860985]
[1737908746048,1.125,684.46,683.61,1.09565285]
[1737908746241,1.125,684.46,683.62,0.26860985]
[1737908749249,1.125,684.46,683.66,1.09565285]
[1737908749448,1.125,684.46,683.67,0.26861067]
[1737908752550,1.125,684.46,683.59,0.26861067]
[1737908752751,1.125,684.46,683.6,0.26861298]
[1737908752950,1.125,684.46,683.59,0.26861298]
[1737908753152,1.125,684.46,683.6,0.26861298]
[1737908753352,1.125,684.46,683.61,0.26861298]
[1737908753552,1.125,684.46,683.62,0.26861298]
[1737908754760,1.125,684.46,683.58,1.09565285]
[1737908754953,1.125,684.46,683.59,0.26862652]
[1737908755556,1.125,684.46,683.6,0.26862791]
[1737908757258,1.125,684.46,683.61,0.26862237]
[1737908757459,1.125,684.46,683.62,0.26862237]
[1737908757652,1.125,684.46,683.63,0.26862237]
[1737908757857,1.125,684.46,683.6,0.26862237]
[1737908758157,1.125,684.46,683.59,1.09565285]
[1737908758461,1.125,684.46,683.6,0.26862219]
[1737908758854,1.125,684.46,683.6,1.36427504]
[1737908759052,1.125,684.46,683.61,0.26862219]
[1737908761860,1.125,684.46,683.71,1.09565285]
[1737908762159,1.125,684.46,683.72,0.26862219]
[1737908762660,1.125,684.46,683.73,0.26862122]
[1737908762959,1.125,684.46,683.74,0.26862122]
[1737908763161,1.125,684.46,683.75,0.26862122]
[1737908763361,1.125,684.46,683.72,0.26862122]
[1737908763561,1.125,684.46,683.71,1.09565285]
[1737908763863,1.125,684.46,683.72,0.26862841]
[1737908764661,1.125,684.46,683.73,0.2686276]
[1737908764861,1.125,684.46,683.74,0.2686276]
[1737908765058,1.125,684.46,683.75,0.2686276]
[1737908765257,1.125,684.46,683.72,0.2686276]
[1737908765768,1.125,684.46,683.77,1.09565285]
[1737908767767,1.125,684.46,683.78,1.09565285]
[1737908770966,1.125,684.46,683.76,1.09565285]
[1737908773470,1.125,684.46,683.71,1.09565285]
[1737908776476,1.125,684.46,683.7,1.09565285]
[1737908776773,1.125,684.46,683.71,0.26863862]
[1737908777471,1.125,684.46,683.7,1.09565285]
[1737908777674,1.125,684.46,683.71,0.26863864]
[1737908778171,1.125,684.46,683.7,1.09565285]
[1737908778974,1.125,684.46,683.71,1.09565285]
[1737908782475,1.125,684.46,683.68,1.09565285]
[1737908782675,1.125,684.46,683.69,0.26863589]
[1737908783172,1.125,684.46,683.68,1.09565285]
[1737908788075,1.125,684.46,683.69,0.26863352]
[1737908788879,1.125,684.46,683.68,1.09565285]
[1737908789079,1.125,684.46,683.69,0.26863449]
[1737908789275,1.125,684.46,683.7,0.26863402]
[1737908789479,1.125,684.46,683.69,0.26863402]
[1737908789679,1.125,684.46,683.68,1.09565285]
[1737908789873,1.125,684.46,683.69,0.26863377]
[1737908790072,1.125,684.46,683.68,1.09565285]
[1737908791377,1.125,684.46,683.72,1.09565285]
[1737908794086,1.125,684.46,683.69,1.09565285]
[1737908797886,1.125,684.46,683.66,1.09565285]
[1737908801091,1.125,684.46,683.62,1.09565285]
[1737908803488,1.125,684.46,683.64,1.09565285]
[1737908806092,1.125,684.46,683.69,1.09565285]
[1737908809298,1.125,684.46,683.0,0.71561903]
[1737908809299,1.125,684.46,683.71,1.09565285]
[1737908811601,1.125,684.46,683.72,0.26863278]
[1737908812494,1.125,684.46,683.71,1.09565285]
[1737908812696,1.125,684.46,683.75,1.09565285]
[1737908815803,1.125,684.46,683.15,0.71568143]
[1737908815804,1.125,684.46,683.74,1.09565285]
[1737908818207,1.125,684.46,683.61,1.09565285]
[1737908821203,1.125,684.46,683.51,1.09565285]
[1737908824405,1.125,684.46,683.52,0.26867517]
[1737908825306,1.125,684.46,683.5,1.09565285]
[1737908825505,1.125,684.46,683.51,0.26867402]
[1737908827010,1.125,684.46,683.5,1.09565285]
[1737908827310,1.125,684.46,683.51,0.26867512]
[1737908828905,1.125,684.46,683.51,1.36432797]
[1737908829108,1.125,684.46,683.52,0.26867512]
[1737908832408,1.125,684.46,683.55,1.09565285]
[1737908832609,1.125,684.46,683.56,0.26867512]
[1737908834109,1.125,684.46,683.55,1.09565285]
[1737908835214,1.125,684.46,683.58,1.09565285]
[1737908837913,1.125,684.46,683.38,1.09565285]
[1737908838114,1.125,684.46,683.39,0.26867442]
[1737908841110,1.125,684.46,683.37,1.09565285]
[1737908841311,1.125,684.46,683.38,0.26867325]
[1737908843512,1.125,684.46,683.38,1.09565285]
[1737908846721,1.125,684.46,683.36,1.09565285]
[1737908847916,1.125,684.46,683.37,0.26867505]
[1737908848115,1.125,684.46,683.36,1.09565285]
[1737908848820,1.125,684.46,683.38,1.09565285]
[1737908851421,1.125,684.46,683.39,0.26867066]
[1737908851621,1.125,684.46,683.38,1.09565285]
[1737908852124,1.125,684.46,683.46,1.09565285]
[1737908855026,1.125,684.46,683.4,1.09565285]
[1737908858623,1.125,684.46,683.46,1.09565285]
[1737908861426,1.125,684.46,683.49,1.09565285]
[1737908862627,1.125,684.46,683.5,0.26867374]
[1737908862826,1.125,684.46,683.49,1.09565285]
[1737908864230,1.125,684.46,683.59,1.09565285]
[1737908866430,1.125,684.46,677.41,7.74854617]
[1737908866431,1.125,684.46,683.36,1.09565285]
[1737908866631,1.125,684.46,683.37,0.29266722]
[1737908875442,1.125,684.46,683.39,1.09565285]
[1737908875941,1.125,684.46,683.4,0.29265437]
[1737908878342,1.125,684.46,683.4,1.38830722]
[1737908881545,1.125,684.46,683.4,0.29265437]
[1737908883447,1.125,684.46,683.41,0.26867561]
[1737908884353,1.125,684.46,683.44,1.09565285]
[1737908884547,1.125,684.46,683.45,0.26867561]
[1737908886255,1.125,684.46,683.44,1.09565285]
[1737908886554,1.125,684.46,683.45,0.26867535]
[1737908887455,1.125,684.46,683.53,1.09565285]
[1737908889154,1.125,684.46,683.4,0.29265437]
[1737908889355,1.125,684.46,683.41,0.26867743]
[1737908889949,1.125,684.46,683.4,0.29265437]
[1737908890249,1.125,684.46,683.41,0.26868842]
[1737908891753,1.125,684.46,683.42,0.26869044]
[1737908891950,1.125,684.46,683.41,0.26869044]
[1737908892155,1.125,684.46,683.54,1.09626552]
[1737908895959,1.125,684.46,683.55,1.09626552]
[1737908898261,1.125,684.46,683.53,1.09626552]
[1737908900458,1.125,684.46,683.54,0.26868966]
[1737908901963,1.125,684.46,683.55,0.26868966]
[1737908902159,1.125,684.46,683.53,0.26868966]
[1737908902361,1.125,684.46,683.52,1.09626552]
[1737908902565,1.125,684.46,683.53,0.2686867]
[1737908904263,1.125,684.46,683.57,1.09626552]
[1737908907167,1.125,684.46,683.56,1.09626552]
[1737908910064,1.125,684.46,683.51,1.09626552]
[1737908915175,1.125,684.46,683.52,0.26869304]
[1737908916471,1.125,684.46,683.52,1.36495856]
[1737908916772,1.125,684.46,683.53,0.26869304]
[1737908919176,1.125,684.46,683.63,1.09626552]
[1737908921579,1.125,684.46,683.64,1.09626552]
[1737908927081,1.125,684.46,683.65,1.09626552]
[1737908930380,1.125,684.46,683.6,1.09626552]
[1737908933087,1.125,684.46,683.4,0.29265437]
[1737908939785,1.125,684.46,683.41,0.26868606]
[1737908940884,1.125,684.46,683.42,0.26868637]
[1737908941083,1.125,684.46,683.41,0.26868637]
[1737908941290,1.125,684.46,683.5,1.09626552]
[1737908944094,1.125,684.46,683.51,1.09626552]
[1737908947697,1.125,684.46,683.4,0.29265437]
[1737908953497,1.125,684.46,683.41,0.26866535]
[1737908954800,0.29220542,684.45,683.35,1.09626552]
[1737908956205,1.52620542,684.45,683.35,1.09626552]
[1737908956509,1.52620542,684.45,683.36,1.09626552]
[1737908959904,1.52620542,684.45,682.86,1.09626552]
[1737908960102,1.52620542,684.45,682.88,0.29287722]
[1737908960301,1.52620542,684.45,682.89,0.26880144]
[1737908960501,1.52620542,684.45,682.9,0.29286864]
[1737908960705,1.52620542,684.45,682.91,0.26880144]
[1737908960907,1.52620542,684.45,682.92,0.29286007]
[1737908961105,1.52620542,684.45,682.93,0.26880144]
[1737908961303,1.52620542,684.45,682.94,0.29285149]
[1737908961502,1.52620542,684.45,682.95,0.26880144]
[1737908961705,1.52620542,684.45,682.96,0.29284291]
[1737908961901,1.52620542,684.45,682.97,0.26880144]
[1737908962103,1.52620542,684.45,682.98,0.29283434]
[1737908962511,1.52620542,684.45,682.99,0.26880188]
[1737908962704,1.52620542,684.45,683.0,0.29282576]
[1737908962910,1.52620542,684.45,683.01,0.26880188]
[1737908963106,1.52620542,684.45,683.02,0.29281719]
[1737908963304,1.52620542,684.45,683.03,0.26880188]
[1737908963506,1.52620542,684.45,683.04,0.29280862]
[1737908963710,1.52620542,684.45,683.05,0.26880188]
[1737908963910,1.52620542,684.45,683.06,0.29280004]
[1737908964110,1.52620542,684.45,683.07,0.26880188]
[1737908964304,1.52620542,684.45,683.08,0.29279147]
[1737908964510,1.52620542,684.45,683.09,0.26880188]
[1737908964910,1.52620542,684.45,683.09,0.56158906]
[1737908965103,1.52620542,684.45,683.1,0.26880188]
[1737908965509,1.52620542,684.45,683.11,0.29277861]
[1737908965709,1.52620542,684.45,683.12,0.26880188]
[1737908965905,1.52620542,684.45,683.13,0.29277004]
[1737908966111,1.52620542,684.45,683.14,0.26880188]
[1737908966407,1.52620542,684.45,683.14,0.56156763]
[1737908966606,1.52620542,684.45,683.14,0.29276575]
[1737908967009,1.52620542,684.45,683.15,0.26877134]
[1737908967808,1.52620542,684.45,683.14,0.29276575]
[1737908967809,1.52620542,684.45,683.16,0.26876865]
[1737908968010,1.52620542,684.45,683.17,0.26876865]
[1737908968208,1.52620542,684.45,683.18,0.26876865]
[1737908968408,1.52620542,684.45,683.14,0.29276575]
[1737908968611,1.52620542,684.45,683.15,0.26877069]
[1737908970417,1.52620542,684.45,683.16,0.268766]
[1737908970619,1.52620542,684.45,683.15,0.268766]
[1737908970818,1.52620542,684.45,683.16,0.268766]
[1737908971018,1.52620542,684.45,683.17,0.268766]
[1737908971213,1.52620542,684.45,683.14,0.29276575]
[1737908971412,1.52620542,684.45,683.15,0.26876771]
[1737908972619,1.52620542,684.45,683.16,0.29275718]
[1737908972919,1.52620542,684.45,683.17,0.26876771]
[1737908973119,1.52620542,684.45,683.18,0.29274861]
[1737908973320,1.52620542,684.45,683.19,0.26876771]
[1737908974817,1.52620542,684.45,683.18,0.29274861]
[1737908975015,1.52620542,684.45,683.19,0.2687551]
[1737908975213,1.52620542,684.45,683.2,0.29274004]
[1737908975415,1.52620542,684.45,683.21,0.2687551]
[1737908975617,1.52620542,684.45,683.21,0.29273576]
[1737908975818,1.52620542,684.45,683.22,0.26875122]
[1737908979627,1.52620542,684.45,683.23,0.29272719]
[1737908979923,1.52620542,684.45,683.24,0.26875122]
[1737908980218,1.52620542,684.45,683.23,0.29272719]
[1737908980424,1.52620542,684.45,683.25,0.29271862]
[1737908980725,1.52620542,684.45,683.26,0.26872695]
[1737908983125,1.52620542,684.45,683.25,0.29271862]
[1737909020251,1.52620542,684.45,683.26,0.26878555]
[1737909021353,1.52620542,684.45,683.27,0.26878649]
[1737909021553,1.52620542,684.45,683.26,0.26878649]
[1737909021753,1.52620542,684.45,683.27,0.26878649]
[1737909021952,1.52620542,684.45,683.25,0.29271862]
[1737909021953,1.52620542,684.45,683.26,0.26878649]
[1737909022154,1.52620542,684.45,683.27,0.26878649]
[1737909022354,1.52620542,684.45,683.26,0.26878649]
[1737909022549,1.52620542,684.45,683.27,0.26878649]
[1737909022855,1.52620542,684.45,683.28,0.26878649]
[1737909023051,1.52620542,684.45,683.25,0.29271862]
[1737909023052,1.52620542,684.45,683.26,0.26878649]
[1737909023249,1.52620542,684.45,683.27,0.26878649]
[1737909023449,1.52620542,684.45,683.28,0.26878649]
[1737909023655,1.52620542,684.45,683.29,0.26878649]
[1737909023858,1.52620542,684.45,683.26,0.26878649]
[1737909024056,1.52620542,684.45,683.25,0.29271862]
[1737909024256,1.52620542,684.45,683.26,0.2687892]
[1737909025357,1.52620542,684.45,683.25,0.29271862]
[1737909025954,1.52620542,684.45,683.27,1.09626552]
[1737909026755,1.52620542,684.45,683.28,0.26878468]
[1737909028758,1.52620542,684.45,683.26,0.26878468]
[1737909028958,1.52620542,684.45,683.27,0.26878468]
[1737909029261,1.52620542,684.45,683.28,0.26878468]
[1737909029564,1.52620542,684.45,683.29,0.26878468]
[1737909029861,1.52620542,684.45,683.3,0.26878468]
[1737909030062,1.52620542,684.45,683.31,0.26878468]
[1737909030256,1.52620542,684.45,683.32,0.26878468]
[1737909030457,1.52620542,684.45,683.33,0.26878468]
[1737909030660,1.52620542,684.45,683.26,0.26878468]
[1737909030859,1.52620542,684.45,683.27,0.26878468]
[1737909031063,1.52620542,684.45,683.28,0.26878468]
[1737909031358,1.52620542,684.45,683.29,0.26878468]
[1737909031565,1.52620542,684.45,683.33,1.09626552]
[1737909031757,1.52620542,684.45,683.34,0.26878468]
[1737909031963,1.52620542,684.45,683.33,1.09626552]
[1737909032458,1.52620542,684.45,683.34,0.26875933]
[1737909034564,1.52620542,684.45,683.3,0.26875933]
[1737909034762,1.52620542,684.45,683.31,0.26873565]
[1737909035063,1.52620542,684.45,683.32,0.26873565]
[1737909035257,1.52620542,684.45,683.3,0.26873565]
[1737909038665,1.52620542,684.45,683.32,1.09626552]
[1737909038862,1.52620542,684.45,683.33,0.26873565]
[1737909041167,1.52620542,684.45,683.32,1.09626552]
[1737909041467,1.52620542,684.45,683.33,0.26873774]
[1737909043069,1.52620542,684.45,683.33,1.36500326]
[1737909043263,1.52620542,684.45,683.34,0.26873774]